{"text_format":"1","workbook":"xlsx","n_sheets":13,"sheets":["Message","TOC","Summary","2.3 Results Participation - LDC","2.5.1 Evaluation Findings","2.5.2 Results - LDC","3.1.1 Summary - LDC","Provincial - Participation","Provincial - Results","Provincial - Progress Summary","Methodology","Reference Tables","Glossary"],"not_rendered":{"charts":4,"images":1,"macros":0,"external_links":1,"defined_names":8,"comments":0,"pivot_tables":0},"unopened":[],"bounds":{"document_bytes":16777216,"sheet_cells":100000,"rows_first":2000,"rows_last":500,"rows_between":2000,"halvings":0,"cell_chars":16384,"cell_head_chars":4096},"cells_cut":0,"cells_raw":0,"read":"whole","date_system":"1900"}

{"sheet":"Message","index":0,"n_rows":30,"n_cols":1,"rows_kept":30,"cut":false,"hidden":false,"merged":[[29,0,29,10],[27,0,27,10],[11,0,15,10],[17,0,22,10],[24,0,25,10]]}
[]
[]
[]
[]
[]
[]
[]
["Message from the Vice President: "]
[]
["The OPA is pleased to provide you with the enclosed Final 2011 Results Report. "]
[]
["Despite some of the inertial challenges in 2011 with program start up, on average, year one province-wide forecasts were met and the year finished out with strong momentum which continues to build 2012. There are still challenges for LDCs of all sizes and we are committed to ensuring LDCs are successful in meeting their objectives. We look forward to further dialogue to discover opportunities to improve the current program suite with local program opportunities, best practices and successes to better reach our customers in the years to come. "]
[]
[]
[]
[]
[]
["This report was developed in collaboration with the OPA-LDC Reporting and Evaluation Working Group and is designed to help populate LDC annual report templates that will be submitted to the OEB in late September. Between the draft and final reports several improvements were made to improve clarity and transparency based on feedback provided by LDCs, such as: the addition of a glossary tab, total adjustments to savings are now broken out into both the realization rate and net-to-gross ratio for both peak demand and energy savings and modifications were made to the methodology tab. We invite you to continue to provide your feedback. "]
[]
[]
[]
[]
[]
[]
["All results are now considered final for 2011.  Any additional 2011 program activity not captured will be reported in the Final 2012 Results Report. Please continue to monitor saveONenergy E-blasts for any further updates and should you have any other questions or comments please contact LDC.Support@powerauthority.on.ca."]
[]
[]
["We appreciate your collaboration and cooperation throughout the reporting and evaluation process. We look forward to another successful year in 2012."]
[]
["Sincerely, \nAndrew Pride\n"]

{"sheet":"TOC","index":1,"n_rows":17,"n_cols":4,"rows_kept":17,"cut":false,"hidden":false,"merged":[[4,0,4,2],[4,3,4,8],[16,3,16,8],[15,3,15,8],[14,3,14,8],[13,3,13,8],[12,3,12,8],[16,0,16,2],[15,0,15,2],[14,0,14,2],[13,0,13,2],[12,0,12,2],[11,0,11,2],[5,0,5,8],[10,0,10,8],[11,3,11,8],[8,3,8,8],[7,3,7,8],[6,3,6,8],[9,0,9,2],[9,3,9,8],[8,0,8,2],[7,0,7,2],[6,0,6,2]]}
[]
[]
["Table of Contents"]
[]
["Summary",null,null,"Provides a \"snapshot\" of your LDC's OPA-Contracted Province-Wide Program performance in 2011: progress to target using 2 scenarios, sector breakdown and progress against the LDC community."]
["LDC-Specific Data: table formats, section references and table numbers align with the OEB Reporting Template"]
["2.3 Results Participation - LDC",null,null,"Breakdown of initiative-level participation in 2011 for your LDC. "]
["2.5.1 Evaluation Findings",null,null,"Provides a summary of the province-wide evaluation findings for each initiative and highlights which initiatives were not evaluated. "]
["2.5.2 Results - LDC",null,null,"Provides LDC-specific initiative-level results (net and gross peak demand and energy savings, realization rates, net-to-gross ratios and how each initiative contributes to target)"]
["3.1.1 Summary - LDC",null,null,"Provides a portfolio level view of achievement towards your OEB targets in 2011. Contains space to input LDC-specific progress to milestones set out in your CDM Strategy."]
["Province-Wide Data: LDC performance in aggregate (province-wide results)"]
["Provincial - Participation",null,null,"Breakdown of initiative-level participation in 2011 for the province. "]
["Provincial - Results",null,null,"Provides province-wide initiative-level results (net and gross peak demand and energy savings, realization rates, net-to-gross ratios and how each initiative contributes to target)"]
["Provincial - Progress Summary",null,null,"Provides a portfolio level view of provincial achievement towards province-wide OEB targets in 2011."]
["Methodology",null,null,"Provides key equations, notes and an initiative-level breakdown of: how savings are attributed to LDCs, when the savings are considered to 'start' (i.e. what period the savings are attributed to) and how the savings are calculated. "]
["Reference Tables",null,null,"Provides the sector mapping used for Retrofit and the allocation methodology table used in the consumer program when customer specific information is unavailable."]
["Glossary",null,null,"Contains definitions for terms used throughout the report."]

{"sheet":"Summary","index":2,"n_rows":45,"n_cols":8,"rows_kept":45,"cut":false,"hidden":false,"merged":[[3,1,3,4],[0,0,0,8],[27,0,27,8],[9,0,9,8],[26,0,26,8]]}
["OPA-Contracted Province-Wide CDM Programs FINAL 2011 Results"]
[null,"LDC: ","Westario Power Inc."]
[]
[null,"FINAL 2011 Progress to Targets",null,null,null,"Incremental \n2011","Scenario 1: % of Target Achieved","Scenario 2: % of Target Achieved"]
[null,"Net Annual Peak Demand Savings (MW)",null,null,null,{"$f":"'2.5.2 Results - LDC'!J11/1000","v":0.39238210314950872},{"$f":"'3.1.1 Summary - LDC'!E13","v":8.4619578907826287E-2},{"$f":"('2.5.2 Results - LDC'!J11/1000)/'3.1.1 Summary - LDC'!E12","v":9.2542948856016202E-2}]
[null,"Net Cumulative Energy Savings (GWh)",null,null,null,{"$f":"'2.5.2 Results - LDC'!K11/10^6","v":1.6061798606600728},{"$f":"'3.1.1 Summary - LDC'!F27","v":0.30219105536607249},{"$f":"((SUM('2.5.2 Results - LDC'!M16:M21,'2.5.2 Results - LDC'!M23,'2.5.2 Results - LDC'!M25:M29,'2.5.2 Results - LDC'!M33:M36,'2.5.2 Results - LDC'!M39,'2.5.2 Results - LDC'!M41:M46)+(SUM('2.5.2 Results - LDC'!K22,'2.5.2 Results - LDC'!K30:K31,'2.5.2 Results - LDC'!K37)*4))/10^6)/'3.1.1 Summary - LDC'!F26","v":0.30219105536607255}]
[]
[null,"Scenario 1 = Assumes that demand resource resources have a persistence of 1 year"]
[null,"Scenario 2 = Assumes that demand response resources remain in your territory until 2014"]
["Achievement by Sector"]
[]
[]
[]
[]
[]
[]
[]
[]
[]
[]
[]
[]
[]
[]
[]
[]
["Comparison: Your Achievement vs. LDC Community Achievement"]
["The following graphs assume that demand response resources remain in your territory until 2014 (aligns with Scenario 2)"]
[]
[]
[]
[null,null,null,null,"# of LDCs (Peak Demand Savings Achievement)","Your Progress","# of LDCs (Energy Savings Achievement)","Your Progress"]
[null,null,0,"0-5%",9,{"$f":"IF(AND($H$5 >= Summary!C33,$H$5 < Summary!C34), E33, \" \")","v":" "},0,{"$f":"IF(AND($H$6>= Summary!C33,$H$6< Summary!C34), G33, \" \")","v":" "}]
[null,null,0.05,"5-10%",20,{"$f":"IF(AND($H$5 >= Summary!C34,$H$5 < Summary!C35), E34, \" \")","v":20},4,{"$f":"IF(AND($H$6>= Summary!C34,$H$6< Summary!C35), G34, \" \")","v":" "}]
[null,null,0.1,"10-15%",24,{"$f":"IF(AND($H$5 >= Summary!C35,$H$5 < Summary!C36), E35, \" \")","v":" "},3,{"$f":"IF(AND($H$6>= Summary!C35,$H$6< Summary!C36), G35, \" \")","v":" "}]
[null,null,0.15,"15-20%",8,{"$f":"IF(AND($H$5 >= Summary!C36,$H$5 < Summary!C37), E36, \" \")","v":" "},11,{"$f":"IF(AND($H$6>= Summary!C36,$H$6< Summary!C37), G36, \" \")","v":" "}]
[null,null,0.2,"20-25%",1,{"$f":"IF(AND($H$5 >= Summary!C37,$H$5 < Summary!C38), E37, \" \")","v":" "},4,{"$f":"IF(AND($H$6>= Summary!C37,$H$6< Summary!C38), G37, \" \")","v":" "}]
[null,null,0.25,"25-30%",1,{"$f":"IF(AND($H$5 >= Summary!C38,$H$5 < Summary!C39), E38, \" \")","v":" "},10,{"$f":"IF(AND($H$6>= Summary!C38,$H$6< Summary!C39), G38, \" \")","v":" "}]
[null,null,0.3,"30-35%",1,{"$f":"IF(AND($H$5 >= Summary!C39,$H$5 < Summary!C40), E39, \" \")","v":" "},14,{"$f":"IF(AND($H$6>= Summary!C39,$H$6< Summary!C40), G39, \" \")","v":14}]
[null,null,0.35,"35-40%",0,{"$f":"IF(AND($H$5 >= Summary!C40,$H$5 < Summary!C41), E40, \" \")","v":" "},14,{"$f":"IF(AND($H$6>= Summary!C40,$H$6< Summary!C41), G40, \" \")","v":" "}]
[null,null,0.4,"40-45%",0,{"$f":"IF(AND($H$5 >= Summary!C41,$H$5 < Summary!C42), E41, \" \")","v":" "},3,{"$f":"IF(AND($H$6>= Summary!C41,$H$6< Summary!C42), G41, \" \")","v":" "}]
[null,null,0.45,"45-50%",0,{"$f":"IF(AND($H$5 >= Summary!C42,$H$5 < Summary!C43), E42, \" \")","v":" "},4,{"$f":"IF(AND($H$6>= Summary!C42,$H$6< Summary!C43), G42, \" \")","v":" "}]
[null,null,0.5,"50-55%",2,{"$f":"IF(AND($H$5 >= Summary!C43,$H$5 < Summary!C44), E43, \" \")","v":" "},5,{"$f":"IF(AND($H$6>= Summary!C43,$H$6< Summary!C44), G43, \" \")","v":" "}]
[null,null,0.55000000000000004,"55-60%",0,{"$f":"IF(AND($H$5 >= Summary!C44,$H$5 < Summary!C45), E44, \" \")","v":" "},1,{"$f":"IF(AND($H$6>= Summary!C44,$H$6< Summary!C45), G44, \" \")","v":" "}]
[null,null,0.6,">60%",4,{"$f":"IF($H$5 >Summary!C45, E45, \" \")","v":" "},4,{"$f":"IF($H$6>Summary!C45, G45, \" \")","v":" "}]

{"sheet":"2.3 Results Participation - LDC","index":3,"n_rows":38,"n_cols":4,"rows_kept":38,"cut":false,"hidden":false,"merged":[[37,0,37,3],[0,0,0,3],[28,0,28,3],[26,0,26,3],[20,0,20,3],[12,0,12,3],[3,0,3,3]]}
["Table 1: Participation1"]
[]
["#","Initiative","Unit","Uptake/ Participation Units"]
["Consumer Program"]
[1,"Appliance Retirement","Appliances",295.51764402514794]
[2,"Appliance Exchange","Appliances",38.672333375698585]
[3,"HVAC Incentives","Equipment",173.63016225444852]
[4,"Conservation Instant Coupon Booklet","Products",2784.9774077194888]
[5,"Bi-Annual Retailer Event","Products",4709.7690604529598]
[6,"Retailer Co-op","Products",0]
[7,"Residential Demand Response","Devices",0]
[8,"Residential New Construction","Houses",0]
["Business Program"]
[9,"Efficiency: Equipment Replacement","Projects",11]
[10,"Direct Install Lighting","Projects",194]
[11,"Existing Building Commissioning Incentive","Buildings",0]
[12,"New Construction and Major Renovation Incentive","Buildings",0]
[13,"Energy Audit","Audits",0]
[14,"Commercial Demand Response (part of the Residential program schedule)","Devices",0]
[15,"Demand Response 3 (part of the Industrial program schedule)","Facilities",0]
["Industrial Program"]
[16,"Process & System Upgrades","Projects2",0]
[17,"Monitoring & Targeting","Projects3",0]
[18,"Energy Manager","Managers2 3",0]
[19,"Efficiency: Equipment Replacement Incentive (part of the C&I program schedule)","Projects",0]
[20,"Demand Response 3","Facilities",0]
["Home Assistance Program"]
[21,"Home Assistance Program","Homes",0]
["Pre 2011 Programs Completed in 2011"]
[22,"Electricity Retrofit Incentive Program","Projects",13]
[23,"High Performance New Construction","Projects",3.1743919132111642E-3]
[24,"Toronto Comprehensive","Projects",0]
[25,"Multifamily Energy Efficiency Rebates","Projects",0]
[26,"Data Centre Incentive Program","Projects",0]
[27,"EnWin Green Suites","Projects",0]
["1 Please see \"Methodology\" tab for more information regarding attributing savings to LDCs"]
["2Results are based on completed incentive projects (see \"Methodology\" tab for more information)"]
["3 Includes: Roving Energy Managers, Key Account Managers and Embedded Energy Managers if projects are completed in 2011"]

{"sheet":"2.5.1 Evaluation Findings","index":4,"n_rows":93,"n_cols":6,"rows_kept":93,"cut":false,"hidden":false,"merged":[[91,3,91,5],[0,0,0,5],[2,2,2,5],[3,0,3,5],[4,0,12,0],[4,1,12,1],[4,3,4,5],[5,3,5,4],[6,3,6,5],[7,3,7,4],[8,3,8,5],[9,3,9,4],[10,3,10,5],[11,3,11,4],[12,3,12,4],[13,0,19,0],[13,1,19,1],[13,3,13,5],[14,3,14,4],[15,3,15,5],[16,3,16,4],[17,3,17,5],[18,3,18,5],[19,3,19,5],[20,0,26,0],[20,1,26,1],[20,3,20,5],[21,3,21,4],[22,3,22,4],[23,3,23,5],[24,3,24,4],[25,3,25,5],[26,3,26,4],[32,0,37,0],[32,1,37,1],[32,3,32,5],[33,3,33,4],[34,3,34,5],[35,3,35,4],[36,3,36,4],[37,3,37,5],[27,0,31,0],[27,1,31,1],[27,3,27,5],[28,3,28,4],[29,3,29,4],[30,3,30,5],[31,3,31,5],[43,0,44,0],[43,1,44,1],[43,3,43,5],[44,3,44,5],[38,3,38,5],[39,0,42,0],[39,1,42,1],[39,3,39,5],[40,3,40,4],[41,3,41,5],[42,3,42,4],[53,2,53,3],[54,2,54,3],[55,2,55,3],[46,0,55,0],[46,1,55,1],[46,2,46,3],[47,2,47,3],[48,2,48,3],[49,2,49,3],[50,2,50,3],[51,2,51,3],[52,2,52,3],[63,2,63,3],[64,2,64,3],[65,0,66,0],[65,1,66,1],[65,2,65,3],[66,2,66,3],[56,0,63,0],[56,1,63,1],[56,2,56,3],[57,2,57,3],[58,2,58,3],[59,2,59,3],[60,2,60,3],[61,2,61,3],[62,2,62,3],[73,2,73,3],[74,2,74,3],[74,4,74,5],[73,4,73,5],[71,2,71,3],[72,2,72,3],[72,4,72,5],[71,4,71,5],[67,2,67,3],[68,2,68,3],[69,2,69,3],[80,0,81,0],[80,1,81,1],[80,2,80,3],[81,2,81,3],[81,4,81,5],[80,4,80,5],[75,0,78,0],[75,1,78,1],[75,2,75,3],[76,2,76,3],[77,2,77,3],[78,2,78,3],[89,1,90,1],[87,0,88,0],[87,1,88,1],[85,0,86,0],[85,1,86,1],[83,0,84,0],[83,1,84,1],[83,3,83,5],[84,3,84,5],[86,3,86,5],[85,3,85,5],[88,3,88,5],[87,3,87,5],[90,3,90,5],[89,3,89,5],[92,3,92,5],[82,0,82,5],[79,0,79,5],[45,0,45,5],[46,4,46,5],[51,4,51,5],[50,4,50,5],[54,4,54,5],[57,4,57,5],[56,4,56,5],[55,4,55,5],[47,4,47,5],[60,4,60,5],[67,4,67,5],[66,4,66,5],[65,4,65,5],[64,4,64,5],[69,4,69,5],[68,4,68,5],[70,0,70,5],[78,4,78,5],[77,4,77,5],[75,4,75,5],[89,0,90,0]]}
["Table 3: OPA Province-Wide Evaluation Findings"]
[]
["#","Initiative","OPA Province-Wide Key Evaluation Findings"]
["Consumer Program"]
[1,"Appliance Retirement","*","Overall participation continues to decline year over year"]
[null,null,null,"*",null,"Participation declined 17% from 2010 (from over 67,000 units in 2010 to over 56,000 units in 2011)"]
[null,null,"*","97% of net resource savings achieved through the home pick-up stream"]
[null,null,null,"*",null,"Measure Breakdown: 66% refrigerators, 30% freezers, 4% Dehumidifiers and window air conditioners"]
[null,null,"*","3% of net resource savings achieved through the Retailer pick-up stream "]
[null,null,null,"*",null,"Measure Breakdown: 90% refrigerators, 10% freezers"]
[null,null,"*","Net-to-Gross ratio for the initiative was 50%"]
[null,null,null,"*",null,"Measure-level free ridership ranges from 82% for the retailer pick-up stream to 49% for the home pick-up stream"]
[null,null,null,"*",null,"Measure-level spillover ranges from 3.7% for the retailer pick-up stream to 1.7% for the home pick-up stream"]
[2,"Appliance Exchange","*","Overall eligible units exchanged declined by 36% from 2010 (from over 5,700 units in 2010 to over 3,600 units in 2011)"]
[null,null,null,"*",null,"Measure Breakdown: 75% window air conditioners, 25% dehumidifiers"]
[null,null,"*","Dehumidifiers and window air conditioners contributed almost equally to the net energy savings achieved"]
[null,null,null,"*",null,"Dehumidifiers provide more than three times the energy savings per unit than window air conditioners"]
[null,null,"*","Window air conditioners contributed to 64% of the net peak demand savings achieved"]
[null,null,"*","Approximately 96% of consumers reported having replaced their exchanged units (as opposed to retiring the unit)"]
[null,null,"*","Net-to-Gross ratio for the initiative is consistent with previous evaluations (51.5%)"]
[3,"HVAC Incentives","*","Total air conditioner and furnace installations increased by 14% (from over 95,800 units in 2010 to over 111,500 units in 2011)"]
[null,null,null,"*",null,"Measure Breakdown: 64% furnaces, 10% tier 1 air conditioners (SEER 14.5) and 26% tier 2 air conditioners (SEER 15)"]
[null,null,null,"*",null,"Measure breakdown did not change from 2010 to 2011"]
[null,null,"*","The HVAC Incentives initiative continues to deliver the majority of both the energy (45%) and demand (83%) savings in the consumer program"]
[null,null,null,"*",null,"Furnaces accounted for over 91% of energy savings achieved for this initiative"]
[null,null,"*","Net-to-Gross ratio for the initiative was 17% higher than 2010 (from 43% in 2010 to 60% in 2011)"]
[null,null,null,"*",null,"Increase due in part to the removal of programmable thermostats from the program, and an increase in the net-to-gross ratio for both Furnaces and Tier 2 air conditioners (SEER 15)"]
[4,"Conservation Instant Coupon Booklet","*","Customers redeemed nearly 210,000 coupons, translating to nearly 560,000 products"]
[null,null,null,"*",null,"Majority of coupons redeemed were downloadable (~40%) or LDC-branded (~35%)"]
[null,null,null,"*",null,"Majority of coupons redeemed were for multi-packs of standard spiral CFLs (37%), followed by multi-packs of specialty CFLs (17%)"]
[null,null,"*","Per unit savings estimates and net-to-gross ratios for 2011 are based on a weighted average of 2009 and 2010 evaluation findings "]
[null,null,"*","Careful attention in the 2012 evaluation will be made for standard CFLs since it is believed that the market has largely been transformed"]
[5,"Bi-Annual Retailer Event","*","Customers redeemed nearly 370,000 coupons, translating to over 870,000 products"]
[null,null,null,"*",null,"Majority of coupons redeemed were for multi-packs of standard spiral CFLs (49%), followed by multi-packs of specialty CFLs (16%)"]
[null,null,"*","Per unit savings estimates and net-to-gross ratios for 2011 are based on a weighted average of 2009 and 2010 evaluation findings"]
[null,null,null,"*",null,"Standard CFLs and heavy duty outdoor timers were reintroduced to the initiative in 2011 and contributed more than 64% of the initiative’s 2011 net annual energy savings"]
[null,null,null,"*",null,"While the volume of coupons redeemed for heavy duty outdoor timers was relatively small (less than 1%), the measure accounted for 10% of net annual savings due to high per unit savings"]
[null,null,"*","Careful attention in the 2012 evaluation will be made for standard CFLs since it is believed that the market has largely been transformed."]
[6,"Retailer Co-op","*","Initiative was not evaluated in 2011 due to low uptake. Verified Bi-Annual Retailer Event per unit assumptions and free-ridership rates were used to calculate net resource savings "]
[7,"Residential Demand Response","*","Approximately 20,000 new devices were installed in 2011 "]
[null,null,null,"*",null,"99% of the new devices enrolled controlled residential central AC (CAC)"]
[null,null,"*","2011 only saw 1 atypical event (in both weather and timing) that had limited participation across the province "]
[null,null,null,"*",null,"The ex ante impact developed through the 2009/2010 evaluations was maintained for 2011; residential CAC: 0.56 kW/device, commercial CAC: 0.64 kW/device, and Electric Water Heaters: 0.30 kW/device"]
[8,"Residential New Construction","*","Initiative was not evaluated in 2011 due to limited uptake"]
[null,null,"*","Business case assumptions were used to calculate savings "]
["Business Program"]
[9,"Efficiency: Equipment Replacement","*",null,"Gross verified energy savings were boosted by lighting projects in the prescriptive and custom measure tracks"]
[null,null,"*",null,"Lighting projects overall were determined to have a realization rate of 112%; 116% when including interactive energy changes"]
[null,null,null,null,"*","On average, the evaluation found high realization rates as a result of both longer operating hours and larger wattage reductions than initial assumptions "]
[null,null,null,null,"*","Low realization rates for engineered lighting projects due to overstated operating hour assumptions "]
[null,null," *",null,"Custom non-lighting projects suffered from process issues such as: the absence of required M&V plans,  the use of inappropriate assumptions , and the lack of adherence to the M&V plan"]
[null,null,"*",null,"The final realization rate for summer peak demand was 94%"]
[null,null,null,null,"*","84% was a result of different methodologies used to calculate peak demand savings"]
[null,null,null,null,"*","10% due to the benefits from reduced air conditioning load in lighting retrofits"]
[null,null,"*",null,"Overall net-to-gross ratios in the low 70’s represent an improvement over the 2009 and 2010 ERIP program where net-to-gross ratios were in the low 60’s and low 50’s, respectively."]
[null,null,null,null,"Strict eligibility requirements and improvements in the pre-approval process contributed to the improvement in net-to-gross ratios"]
[10,"Direct Install Lighting","*",null,"Though overall performance is above expectations, participation continues to decline year over year as the initiative reaches maturity"]
[null,null,"*",null,"70% of province-wide resource savings persist to 2014"]
[null,null,null,null,"*","Over 35% of the projects for 2011 included at least one CFL measure"]
[null,null,null,null,"*","Resource savings from CFLs in the commercial sector only persist for the industry standard of 3 years"]
[null,null,"*",null,"Since 2009 the overall realization rate for this program has improved"]
[null,null,null,null,"*","2011 evaluation recorded the highest energy realization rate to date at 89.5%"]
[null,null,null,null,"*","The hours of use values were held constant from the 2010 evaluation and continue to be the main driver of energy realization rate"]
[null,null,null,null,"*","Lights installed in “as needed” areas (e.g., bathrooms, storage areas) were determined to have very low realization rates due to the difference in actual energy saved vs. reported savings"]
[11,"Existing Building Commissioning Incentive"," *",null,"Initiative was not evaluated in 2011, no completed projects in 2011"]
[12,"New Construction and Major Renovation Incentive"," *",null,"Initiative was not evaluated in 2011 due to low uptake"]
[null,null," *",null,"Assumptions used are consistent with preliminary reporting based on the 2010 Evaluation findings and consultation with the C&I Work Group (100% realization rate and 50% net-to-gross ratio)"]
[13,"Energy Audit"," *",null,"The evaluation is ongoing.  The sample size for 2011 was too small to draw reliable conclusions."]
[14,"Commercial Demand Response (part of the Residential program schedule)","*",null,"See residential demand response (#7)"]
[15,"Demand Response 3 (part of the Industrial program schedule)","*",null,"See Demand Response 3 (#20)"]
["Industrial Program"]
[16,"Process & System Upgrades","*",null,"Initiative was not evaluated in 2011, no completed projects in 2011"]
[17,"Monitoring & Targeting","*",null,"Initiative was not evaluated in 2011, no completed projects in 2011"]
[18,"Energy Manager","*",null,"Initiative was not evaluated in 2011, no completed projects in 2011"]
[19,"Efficiency: Equipment Replacement Incentive (part of the C&I program schedule)","*",null,"See Efficiency: Equipment Replacement (#9)"]
[20,"Demand Response 3","*",null,"Program performance for Tier 1 customers increased with DR-3 participants providing 75% of contracted MW for both sectors"]
[null,null,null,null,"*","Industrial customers outperform commercial customers by provide 84% and 76% of contracted MW, respectively"]
[null,null," *",null,"Program continues to diversify but still remains heavily concentrated with less than 5% of the contributors accounting for the majority (~60%) of the load reductions.   "]
[null,null,"*",null,"By increasing the number of contributors in each settlement account and implementation of the new baseline methodology the performance of the program is expected to increase "]
["Home Assistance Program"]
[21,"Home Assistance Program"," *",null," Initiative was not evaluated in 2011 due to low uptake"]
[null,null," *",null,"Business Case assumptions were used to calculate savings "]
["Pre-2011 Programs completed in 2011"]
[22,"Electricity Retrofit Incentive Program"," *"," Initiative was not evaluated"]
[null,null,"*","Net-to-Gross ratios used are consistent with the 2010 evaluation findings (multifamily buildings 99% realization rate and 62% net-to-gross ratio and C&I buildings 77%  realization rate and 52% net-to-gross ratio)"]
[23,"High Performance New Construction"," *"," Initiative was not evaluated"]
[null,null,"*","Net-to-Gross ratios used are consistent with the 2010 evaluation findings (realization rate of 100% and net-to-gross ratio of 50%)"]
[24,"Toronto Comprehensive"," *"," Initiative was not evaluated"]
[null,null,"*","Net-to-Gross ratios used are consistent with the 2010 evaluation findings"]
[25,"Multifamily Energy Efficiency Rebates"," *"," Initiative was not evaluated"]
[null,null,"*","Net-to-Gross ratios used are consistent with the 2010 evaluation findings"]
[26,"Data Centre Incentive Program"," *"," Initiative was not evaluated"]
[27,"EnWin Green Suites"," *"," Initiative was not evaluated"]

{"sheet":"2.5.2 Results - LDC","index":5,"n_rows":47,"n_cols":13,"rows_kept":47,"cut":false,"hidden":false,"merged":[[7,1,7,4],[6,1,6,4],[5,1,5,4],[1,1,1,12],[3,11,3,12],[3,9,3,10],[3,5,3,6],[3,1,4,4],[12,11,12,12],[12,9,12,10],[12,5,12,6],[12,3,12,4],[12,7,12,8],[10,1,10,4],[9,1,9,4],[8,1,8,4],[12,2,13,2],[12,1,13,1]]}
[]
[null,"Table 5: Summarized Program Results"]
[]
[null,"Program",null,null,null,"Gross Savings",null,null,null,"Net Savings",null,"Contribution to Targets"]
[null,null,null,null,null,"Incremental Peak Demand Savings (kW)","Incremental Energy Savings (kWh)",null,null,"Incremental Peak Demand Savings (kW)","Incremental Energy Savings (kWh)","Program-to-Date: Net Annual Peak Demand Savings (kW) in 2014","Program-to-Date: 2011-2014 Net Cumulative Energy Savings (kWh)"]
[null,"Consumer Program Total",null,null,null,{"$f":"SUM(F16:F23)","v":156.8804787782949},691914.58800436184,null,null,96.512026990105142,509951.81195615639,93.324640658002309,2036956.9135078746]
[null,"Business Program Total",null,null,null,{"$f":"SUM(F25:F31)","v":264.43210824105552},980525.47092040954,null,null,255.8890424750291,837862.07410189603,225.48134022680668,3260481.7980032628]
[null,"Industrial Program Total",null,null,null,{"$f":"SUM(F33:F37)","v":0},0,null,null,0,0,0,0]
[null,"Home Assistance Program Total",null,null,null,{"$f":"F39","v":0},0,null,null,0,0,0,0]
[null,"Pre-2011 Programs completed in 2011 Total",null,null,null,{"$f":"SUM(F41:F46)","v":72.525886957845756},{"$f":"SUM(G41:G46)","v":463384.27674640558},null,null,39.981033684374481,258365.97460202043,39.981033684374481,1033463.8984080817]
[null,"Total OPA Contracted Province-Wide CDM Programs",null,null,null,{"$f":"SUM(F6:F10)","v":493.83847397719614},2135824.3356711771,null,null,392.38210314950874,1606179.8606600729,358.7870145691835,6330902.6099192183]
[]
[null,"#","Initiative","Realization Rate",null,"Gross Savings",null,"Net-to-Gross Ratio",null,"Net Savings",null,"Contribution to Targets"]
[null,null,null,"Peak Demand Savings","Energy Savings","Incremental Peak Demand Savings (kW)","Incremental Energy Savings (kWh)","Peak Demand Savings","Energy Savings","Incremental Peak Demand Savings (kW)","Incremental Energy Savings (kWh)","Program-to-Date: Net Annual Peak Demand Savings (kW) in 2014","Program-to-Date: 2011-2014 Net Cumulative Energy Savings (kWh)"]
[null,"Consumer Program"]
[null,1,"Appliance Retirement",0.99999999999999989,1.0000000000000002,35.902119878294634,243090.80172654282,0.5063107559175275,0.51725509637631406,17.732586903948185,123291.91127885281,17.05451468200603,492561.27603364317]
[null,2,"Appliance Exchange",1,1,7.5100752211735387,9063.322783693864,0.51536512624827746,0.51536512624827746,3.8704308644941614,4670.9204906472787,1.3611167543334919,16439.716727606159]
[null,3,"HVAC Incentives",0.99999999999999989,1.0000000000000002,99.686437661043328,199730.46877915302,0.59663155313621263,0.59517809012999956,59.434033292861734,118837.11619023261,59.434033292861734,475348.46476093045]
[null,4,"Conservation Instant Coupon Booklet",0.99999999999999989,1.0000000000000002,5.6428952795054919,94465.630395321787,1.1394715396038706,1.11169261710013,6.3757201072994736,104122.67761841179,6.3757201072994736,416490.71047364717]
[null,5,"Bi-Annual Retailer Event",1.0000000000000002,1.0000000000000004,8.1389507382779165,145564.36431965028,1.1278741788120168,1.1022774500607773,9.0992558215015826,159029.18637801192,9.0992558215015826,636116.74551204767]
[null,6,"Retailer Co-op","-","-",0,0,"-","-",0,0,0,0]
[null,7,"Residential Demand Response",0,0,0,0,"-","-",0,0,0,0]
[null,8,"Residential New Construction","-","-",0,0,"-","-",0,0,0,0]
[null,"Business Program"]
[null,9,"Efficiency: Equipment Replacement",0.93478882001532204,1.3534020674999054,84.454430733104303,441522.13214400678,0.74792520116333805,0.76412112357365136,63.165597095192233,337376.38769651263,63.165597095192233,1349505.5507860505]
[null,10,"Direct Install Lighting",1.0759581849200779,0.89504473906375259,179.9776775079512,539003.33877640276,0.92547823167093235,0.92853912100348235,192.72344537983687,500485.68640538334,162.31574313161445,1910976.2472172126]
[null,11,"Existing Building Commissioning Incentive","-","-",0,0,"-","-",0,0,0,0]
[null,12,"New Construction and Major Renovation Incentive","-","-",0,0,"-","-",0,0,0,0]
[null,13,"Energy Audit","-","-",0,0,"-","-",0,0,0,0]
[null,14,"Commercial Demand Response (part of the Residential program schedule)",0,0,0,0,"-","-",0,0,0,0]
[null,15,"Demand Response 3 (part of the Industrial program schedule)",0.76,1,0,0,"n/a","n/a",0,0,0,0]
[null,"Industrial Program"]
[null,16,"Process & System Upgrades","-","-",0,0,"-","-",0,0,0,0]
[null,17,"Monitoring & Targeting","-","-",0,0,"-","-",0,0,0,0]
[null,18,"Energy Manager","-","-",0,0,"-","-",0,0,0,0]
[null,19,"Efficiency: Equipment Replacement Incentive (part of the C&I program schedule)","-","-",0,0,"-","-",0,0,0,0]
[null,20,"Demand Response 3",0.84,1,0,0,"n/a","n/a",0,0,0,0]
[null,"Home Assistance Program"]
[null,21,"Home Assistance Program","-","-",0,0,"-","-",0,0,0,0]
[null,"Pre-2011 Programs completed in 2011"]
[null,22,"Electricity Retrofit Incentive Program",0.84806060340875344,0.86250955626134185,72.104010272579998,461217.51809088059,0.55548209245852431,0.56204979830060986,39.770095341741602,257282.59527425794,39.770095341741602,1029130.3810970318]
[null,23,"High Performance New Construction",1,1,0.42187668526576372,2166.7586555249627,0.5,0.5,0.21093834263288186,1083.3793277624814,0.21093834263288186,4333.5173110499254]
[null,24,"Toronto Comprehensive","-","-",0,0,"-","-",0,0,0,0]
[null,25,"Multifamily Energy Efficiency Rebates","-","-",0,0,"-","-",0,0,0,0]
[null,26,"Data Centre Incentive Program","-","-",0,0,"-","-",0,0,0,0]
[null,27,"EnWin Green Suites","-","-",0,0,"-","-",0,0,0,0]
[null,null,"Assumes demand response resources have a persistence of 1 year"]

{"sheet":"3.1.1 Summary - LDC","index":6,"n_rows":29,"n_cols":6,"rows_kept":29,"cut":false,"hidden":false,"merged":[[0,0,0,5],[4,0,5,0],[4,1,4,4],[10,0,10,3],[2,0,2,5],[1,0,1,5],[11,0,11,3],[25,0,25,4],[26,0,26,4],[27,0,27,4],[16,0,16,5],[12,0,12,3],[13,0,13,3],[18,0,19,0],[18,1,18,4],[24,0,24,4]]}
["Progress Towards CDM Targets"]
["Results are attributed to target using current OPA reporting policies. Energy efficiency resources persist for the duration of the effective useful life. Any upcoming code changes are taken into account. Demand response resources persist for 1 year. Please see methodology tab for more detailed information. \n\nYellow cells are intended for the LDC to input information to complete their OEB Reporting Template. "]
["Table 6: Net Peak Demand Savings at the End User Level (MW)"]
[]
["Implementation Period","Annual"]
[null,2011,2012,2013,2014]
["2011 - Verified",0.39238210314950878,0.39238210314950878,0.39129446784629868,0.35878701456918349]
[2012]
[2013]
[2014,null,null,null,0]
["Verified Net Annual Peak Demand Savings Persisting in 2014:  ",null,null,null,{"$f":"SUM(E7:E10)","v":0.35878701456918349}]
["Westario Power Inc. 2014 Annual CDM Capacity Target:",null,null,null,4.24]
["Verified Portion of Peak Demand Savings Target Achieved in 2014(%):  ",null,null,null,{"$f":"E11/E12","v":8.4619578907826287E-2}]
["LDC Milestone submitted for 2011",null,null,null,"-%"]
["Variance"]
[]
["Table 7: Net Energy Savings at the End User Level (GWh)"]
[]
["Implementation Period","Annual",null,null,null,"Cumulative"]
[null,2011,2012,2013,2014,"2011-2014 "]
["2011 - Verified",1.6061798606600726,1.6061798606600726,1.6031419678920875,1.5154009207069861,{"$f":"SUM(B21:E21)","v":6.3309026099192183}]
[2012]
[2013,"  "]
[2014]
["Verified Net Cumulative Energy Savings 2011-2014:",null,null,null,null,{"$f":"SUM(F21:F24)","v":6.3309026099192183}]
["Westario Power Inc. 2011-2014 Cumulative CDM Energy Target:",null,null,null,null,20.95]
["Verified Portion of Cumulative Energy Target Achieved (%):  ",null,null,null,null,{"$f":"F25/F26","v":0.30219105536607249}]
["LDC Milestone submitted for 2011",null,null,null,null,"-%"]
["Variance"]

{"sheet":"Provincial - Participation","index":7,"n_rows":40,"n_cols":5,"rows_kept":40,"cut":false,"hidden":false,"merged":[[37,1,37,4],[1,1,1,4],[29,1,29,4],[4,1,4,4],[13,1,13,4],[21,1,21,4],[27,1,27,4]]}
[]
[null,"Table P1: Province-Wide Participation"]
[]
[null,"#","Initiative","Activity Unit","Uptake/ Participation Units"]
[null,"Consumer Program"]
[null,1,"Appliance Retirement","Appliances",56109.554545454608]
[null,2,"Appliance Exchange","Appliances",3688]
[null,3,"HVAC Incentives","Equipment",111587.04528780788]
[null,4,"Conservation Instant Coupon Booklet","Products4",559462.0000000007]
[null,5,"Bi-Annual Retailer Event","Products5",870331.99999999942]
[null,6,"Retailer Co-op","Products",152]
[null,7,"Residential Demand Response","Devices",19577]
[null,8,"Residential New Construction","Houses",7]
[null,"Business Program"]
[null,{"$f":"B13+1","v":9},"Efficiency: Equipment Replacement","Projects",2515.7128437244301]
[null,10,"Direct Installed Lighting","Projects",20297]
[null,11,"Existing Building Commissioning Incentive","Buildings"," - "]
[null,12,"New Construction and Major Renovation Incentive","Buildings",10]
[null,13,"Energy Audit","Audits",103]
[null,14,"Commercial Demand Response (part of the Residential program schedule)","Devices",264]
[null,15,"Demand Response 3 (part of the Industrial program schedule)","Facilities",148]
[null,"Industrial Program"]
[null,16,"Process & System Upgrades2","Projects"," - "]
[null,17,"Monitoring & Targeting2","Projects"," - "]
[null,18,"Energy Manager2 3","Managers"," - "]
[null,19,"Efficiency: Equipment Replacement Incentive (part of the C&I program schedule)1","Projects",432.78715627556937]
[null,20,"Demand Response 3","Facilities",134]
[null,"Home Assistance Program"]
[null,21,"Home Assistance Program","Homes",46]
[null,"Pre 2011 Programs Completed in 2011"]
[null,22,"Electricity Retrofit Incentive Program","Projects",2023]
[null,23,"High Performance New Construction","Projects",144.99999999999997]
[null,24,"Toronto Comprehensive","Projects",553]
[null,25,"Multifamily Energy Efficiency Rebates","Projects",110]
[null,26,"Data Centre Incentive Program","Projects",5]
[null,27,"EnWin Green Suites","Projects",3]
[null,"2Results are based on completed incentive projects (see \"Methodology\" tab for more information)"]
[null,"3 Includes: Roving Energy Managers, Key Account Managers and Embedded Energy Managers with completed projects"]
[null,"4 209,693 valid coupons redeemed"]
[null,"5 369,446 valid coupons redeemed"]

{"sheet":"Provincial - Results","index":8,"n_rows":47,"n_cols":13,"rows_kept":47,"cut":false,"hidden":false,"merged":[[59,6,59,9],[59,10,59,12],[58,6,58,9],[58,10,58,12],[12,5,12,6],[12,9,12,10],[12,7,12,8],[1,1,1,12],[3,5,3,6],[3,9,3,10],[3,11,3,12],[12,11,12,12],[12,1,13,1],[12,2,13,2],[3,1,4,4],[9,1,9,4],[8,1,8,4],[7,1,7,4],[6,1,6,4],[5,1,5,4],[10,1,10,4],[12,3,12,4]]}
[]
[null,"Table P2: Province-Wide Results"]
[]
[null,"Program",null,null,null,"Gross Savings",null,null,null,"Net Savings",null,"Contribution to Targets"]
[null,null,null,null,null,"Incremental Peak Demand Savings (kW)","Incremental Energy Savings (kWh)",null,null,"Incremental Peak Demand Savings (kW)","Incremental Energy Savings (kWh)","Program-to-Date: Net Annual Peak Demand Savings (kW) in 2014","Program-to-Date: 2011-2014 Net Cumulative Energy Savings (kWh)"]
[null,"Consumer Program Total",null,null,null,{"$f":"SUM(F16:F23)","v":73757.286669371097},{"$f":"SUM(G16:G23)","v":192379633.34992293},null,null,{"$f":"SUM(J16:J23)","v":49123.410216674638},{"$f":"SUM(K16:K23)","v":133519667.6253054},{"$f":"SUM(L16:L23)","v":38404.63369252377},{"$f":"SUM(M16:M23)","v":534017834.51399726}]
[null,"Business Program Total",null,null,null,{"$f":"SUM(F25:F31)","v":78048.284178186834},251304448.42517275,null,null,64593.969472501383,198124227.21974084,41047.897056383372,767657789.61948895]
[null,"Industrial Program Total",null,null,null,{"$f":"SUM(F33:F37)","v":68648.273777045892},41493144.872870378,null,null,57098.690605036558,31947577.240797661,4613.3671100804841,118543018.85022801]
[null,"Home Assistance Program Total",null,null,null,{"$f":"F39","v":3.5173448060000001},56119.19,null,null,2.4621413642000003,39283.433000000005,2.4621413641999998,157133.73199999999]
[null,"Pre-2011 Programs completed in 2011 Total",null,null,null,{"$f":"SUM(F41:F46)","v":87168.948327322069},460822079.31057847,null,null,44832.734602926706,241853019.78621808,44832.734602926706,967412079.14487231]
[null,"Total OPA Contracted Province-Wide CDM Programs",null,null,null,{"$f":"SUM(F6:F10)","v":307626.31029673188},946055425.14854455,null,null,215651.26703850349,605483775.30506194,128901.09460327853,2387787855.8605866]
[]
[null,"#","Initiative","Realization Rate",null,"Gross Savings",null,"Net-to-Gross Ratio",null,"Net Savings",null,"Contribution to Targets"]
[null,null,null,"Peak Demand Savings","Energy Savings","Incremental Peak Demand Savings (kW)","Incremental Energy Savings (kWh)","Peak Demand Savings","Energy Savings","Incremental Peak Demand Savings (kW)","Incremental Energy Savings (kWh)","Program-to-Date: Net Annual Peak Demand Savings (kW) in 2014","Program-to-Date: 2011-2014 Net Cumulative Energy Savings (kWh)"]
[null,"Consumer Program"]
[null,1,"Appliance Retirement",1,1,6750.4107461222848,45971626.598149568,0.50611032619317298,0.51437864737090355,3299.3423836529319,23005812.107689478,3159.7982065938768,91903302.651752919]
[null,2,"Appliance Exchange",1,1,719.29641732409857,873530.84348720976,0.51309464475630717,0.51309464475630717,370.70028892416764,450187.33343555016,181.4845867039962,1930651.0255228218]
[null,3,"HVAC Incentives",1,1,53209.034339123362,99413430.12682572,0.60349064456644075,0.5985881751743094,32037.432745772712,59437670.316000544,32037.432745772712,237750681.26400217]
[null,4,"Conservation Instant Coupon Booklet",1,1,1184.2041192686659,19192453.38772466,1.1416168310602637,1.1107640435005217,1344.2653092189908,21211537.052541189,1344.2653092189908,84846148.210164756]
[null,5,"Bi-Annual Retailer Event",1,1,1504.0205120515257,26899264.635040425,1.1239049591498793,1.0975836023309551,1681.4780971187329,29387468.485649344,1681.4780971187329,117549873.94259737]
[null,6,"Retailer Co-op",1,1,0.18053548116722201,3917.458695323,0.6772500503352471,0.67680676687292463,0.122191987093121,2651.69998930271,0.12554711545438418,10606.7999572108]
[null,7,"Residential Demand Response","n/a","n/a",10390.02,23597.3,"n/a","n/a",10390.02,23597.3,0,23597.3]
[null,8,"Residential New Construction",1,1,0.12,1813,0.41,0.41,4.9199999999999987E-2,743.32999999999993,4.9199999999999987E-2,2973.3199999999997]
[null,"Business Program"]
[null,9,"Efficiency: Equipment Replacement",1.0601377657239486,0.91128797714742027,34201.164942324598,184070265.21475354,0.71539864421078558,0.73886055099304715,24467.467030168467,136002257.57800913,24438.158478990114,543856391.70215142]
[null,10,"Direct Installed Lighting",1.0759581849200801,0.92853912100348202,22155.462235862236,65777197.0999192,1.0759581849200801,0.92853912100348202,23724.481142332916,61076700.777231716,16486.430077393255,221520977.31483755]
[null,11,"Existing Building Commissioning Incentive",{"$f":"\"-\"","v":"-"},{"$f":"\"-\"","v":"-"},"-","-","-","-","-","-","-","-"]
[null,12,"New Construction and Major Renovation Incentive",0.5,0.5,246.61699999999999,823434.49200000009,0.5,0.5,123.3085,411717.24600000004,123.3085,1646868.9840000002]
[null,13,"Energy Audit",{"$f":"\"-\"","v":"-"},{"$f":"\"-\"","v":"-"},"-","-","-","-","-","-","-","-"]
[null,14,"Commercial Demand Response (part of the Residential program schedule)","n/a","n/a",55.04,131.04,"n/a","n/a",55.04,131.04,0,131.04]
[null,15,"Demand Response 3 (part of the Industrial program schedule)",{"$f":"J31/F31","v":0.75846997662459104},"n/a",21389.999999999996,633420.57849999995,"n/a","n/a",16223.672799999998,633420.57849999995,0,633420.57849999995]
[null,"Industrial Program"]
[null,16,"Process & System Upgrades",{"$f":"\"-\"","v":"-"},"-","-","-","-","-","-","-","-","-"]
[null,17,"Monitoring & Targeting","-","-","-","-","-","-","-","-","-","-"]
[null,18,"Energy Manager","-","-","-","-","-","-","-","-","-","-"]
[null,19,"Efficiency: Equipment Replacement Incentive (part of the C&I program schedule)",1.1109450782702939,0.90969180125611304,6372.2737770459034,38412407.567870378,0.72418272762534397,0.75149780405701516,4614.6906050365551,28866839.935797662,4613.3671100804841,115462281.545228]
[null,20,"Demand Response 3",{"$f":"J37/F37","v":0.84276446785278447},"n/a",62275.999999999993,3080737.3050000002,"n/a","n/a",52484,3080737.3050000002,0,3080737.3050000002]
[null,"Home Assistance Program"]
[null,21,"Home Assistance Program",1,1,3.5173448060000001,56119.19,0.7,0.7,2.4621413642000003,39283.433000000005,2.4621413641999998,157133.73199999999]
[null,"Pre-2011 Programs completed in 2011"]
[null,22,"Electricity Retrofit Incentive Program",0.8,0.8,40417.548886787401,223956390.01950711,0.53817832588025749,0.53817832588025749,21550.185358872932,120492549.20166001,21550.185358872932,481970196.80664003]
[null,23,"High Performance New Construction",1,1,10196.881406300654,52371182.902760193,0.49397161329953843,0.49410320909007283,5098.440703150327,26185591.451380096,5098.440703150327,104742365.80552039]
[null,24,"Toronto Comprehensive",1.1299999999999999,1.1299999999999999,33466.667246484023,174070574.36091241,0.5,0.52,15804.964190458446,86964886.205566928,15804.964190458446,347859544.82226771]
[null,25,"Multifamily Energy Efficiency Rebates",0.93,0.93,2553.4187877499999,9774791.7753987517,0.78,0.78,1980.6219504450003,7595683.3512110254,1980.6219504450003,30382733.404844102]
[null,26,"Data Centre Incentive Program",1,1,81.400000000000006,533038,1,1,81.400000000000006,533038,81.400000000000006,2132152]
[null,27,"EnWin Green Suites",1,1,453.03199999999998,116102.25199999999,0.7,0.7,317.12239999999997,81271.576399999991,317.12239999999997,325086.30559999996]
[null,null,"Assumes demand response resources have a persistence of 1 year"]

{"sheet":"Provincial - Progress Summary","index":9,"n_rows":27,"n_cols":7,"rows_kept":27,"cut":false,"hidden":false,"merged":[[25,1,25,5],[26,1,26,5],[12,1,12,4],[13,1,13,4],[14,1,14,4],[16,1,16,6],[18,1,19,1],[18,2,18,5],[1,1,1,6],[6,1,7,1],[6,2,6,5],[4,1,4,6],[24,1,24,5]]}
[]
[null,"Summary - Provincial Progress"]
[]
[]
[null,"Table P3: Province-Wide Net Peak Demand Savings at the End User Level (MW)"]
[]
[null,"Implementation Period","Annual"]
[null,null,2011,2012,2013,2014]
[null,2011,215.65100000000001,136.44261146463742,135.73152685992957,128.8589853496012]
[null,2012]
[null,2013]
[null,2014]
[null,"Verified Net Annual Peak Demand Savings in 2014:",null,null,null,{"$f":"SUM(F9:F12)","v":128.8589853496012}]
[null,"2014 Annual CDM Capacity Target",null,null,null,1330]
[null,"Verified Peak Demand Savings Target Achieved - 2011 (%):  ",null,null,null,{"$f":"F13/F14","v":9.6886455150076087E-2}]
[]
[null,"Table P4: Province-Wide Net Energy Savings at the End-User Level (GWh)"]
[]
[null,"Implementation Period","Annual",null,null,null,"Cumulative"]
[null,null,2011,2012,2013,2014,"2011-2014 "]
[null,2011,{"$f":"'[1]Provincial - Results'!K11/10^6","v":605.48377530506195},601.58768009784296,599.55230503989765,580.88004956822783,{"$f":"SUM(C21:F21)","v":2387.5038100110305}]
[null,2012,null,null,null,null,0]
[null,2013,"  ",null,null,null,0]
[null,2014,null,null,null,null,0]
[null,"Verified Net Cumulative Energy Savings 2011-2014:",null,null,null,null,{"$f":"SUM(G21:G24)","v":2387.5038100110305}]
[null,"2011-2014 Cumulative CDM Energy Target:",null,null,null,null,6000]
[null,"Verified Portion of Energy Target Achieved - 2011 (%):",null,null,null,null,{"$f":"G25/G26","v":0.39791730166850509}]

{"sheet":"Methodology","index":10,"n_rows":43,"n_cols":5,"rows_kept":43,"cut":false,"hidden":false,"merged":[[20,0,21,0],[11,4,13,4],[19,0,19,4],[20,1,21,1],[38,3,39,3],[21,2,21,4],[34,0,34,4],[36,0,36,4],[23,4,24,4],[14,4,15,4],[2,0,2,4],[40,3,42,3],[40,4,42,4],[37,4,39,4],[1,0,1,4],[5,0,5,4],[4,0,4,4],[28,0,28,4],[10,0,10,4],[8,3,9,3],[8,4,9,4],[8,0,9,0],[8,1,9,1],[8,2,9,2],[3,0,3,4],[6,0,6,4]]}
[]
["METHODOLOGY"]
["All results are at the end-user level (not including transmission and distribution losses)"]
["EQUATIONS:"]
["PRESCRIPTIVE MEASURES/PROJECTS:\nGross Savings = Activity * Per Unit Assumption\nNet Savings = Gross Savings * Net-to-Gross Ratio\nAll savings are annualized (i.e. the savings are the same regardless of time of year a project was completed or measure installed)"]
["ENGINEERED/CUSTOM PROJECTS: \nGross Savings = Reported Savings * Realization Rate\nNet Savings = Gross Savings * Net-to-Gross Ratio\nAll savings are annualized (i.e. the savings are the same regardless of time of year a project was completed or measure installed)"]
["DEMAND RESPONSE: \nPeak Demand: Gross Savings = Net Savings = contracted MW at contributor level * Provincial contracted to ex ante ratio\nEnergy: Gross Savings = Net Savings = provincial ex post energy savings * LDC proportion of total provincial contracted MW \nAll savings are annualized (i.e. the savings are the same regardless of the time of year a participant began offering DR)"]
[]
["#","Initiative","Attributing Savings to LDCs","Savings 'start' Date","Calculating Resource Savings"]
[]
["Consumer Program"]
[1,"Appliance Retirement","Includes both retail and home pickup stream; Retail stream allocated based on average of 2008 & 2009 residential throughput; Home pickup stream directly attributed by postal code or customer selection","Savings are considered to begin in the year the appliance is picked up.","Peak demand and energy savings are determined using the verified measure level per unit assumption multiplied by the uptake in the market (gross) taking into account net-to-gross factors such as free-ridership and spillover (net) at the measure level. "]
[2,"Appliance Exchange","When postal code information is provided by customer, results are directly attributed to the LDC.  When postal code is not available, results allocated based on average of 2008 & 2009 residential throughput ","Savings are considered to begin in the year that the exchange event occurred "]
[3,"HVAC Incentives","Results directly attributed to LDC based on customer postal code","Savings are considered to begin in the year that the installation occurred "]
[4,"Conservation Instant Coupon Booklet","LDC-coded coupons directly attributed to LDC; Otherwise results are allocated based on average of 2008 & 2009 residential throughput","Savings are considered to begin in the year in which the coupon was redeemed.","Peak demand and energy savings are determined using the verified measure level per unit assumption multiplied by the uptake in the market (gross) taking into account net-to-gross factors such as free-ridership and spillover (net) at the measure level. Initiative was not evaluated in 2011, reported results are presented with verified per unit assumptions and net-to-gross ratio from Bi-Annual Retailer Event and Conservation Instant Coupon Booklet initiatives. "]
[5,"Bi-Annual Retailer Event","Results are allocated based on average of 2008 & 2009 residential throughput","Savings are considered to begin in the year in which the event occurs."]
[6,"Retailer Co-op","When postal code information is provided by the customer, results are directly attributed. If postal code information is not available, results are allocated based on average of 2008 & 2009 residential throughput. ","Savings are considered to begin in the year of the home visit and installation date.","Peak demand and energy savings are determined using the verified measure level per unit assumption multiplied by the uptake in the market (gross) taking into account net-to-gross factors such as free-ridership and spillover (net) at the measure level. Initiative was not evaluated in 2011, reported results are presented with verified per unit assumptions and net-to-gross ratio from Bi-Annual Retailer Event and Conservation Instant Coupon Booklet initiatives. "]
[7,"Residential Demand Response","Results are directly attributed to LDC based on data provided to OPA through project completion reports and continuing participant lists","Savings are considered to begin in the year the device was installed and/or when a customer signed a peaksaver PLUS™ participant agreement.","Peak demand savings are based on an ex ante estimate assuming a 1 in 10 weather year and represents the \"insurance value\" of the initiative. Energy savings are based on an ex post estimate which reflects the savings that occurred as a result of activations in the year and accounts for any “snapback” in energy consumption experienced after the event. Savings are assumed to persist for only 1 year, reflecting that savings will only occur if the resource is activated."]
[8,"Residential New Construction","Results are directly attributed to LDC based on LDC identified in application in the saveONenergy CRM system; Initiative was not evaluated in 2011, reported results are presented with forecast assumptions as per the business case.","Savings are considered to begin in the year of the project completion date.","Peak demand and energy savings are determined using a measure level per unit assumption multiplied by the uptake in the market (gross) taking into account net-to-gross factors such as free-ridership and spillover (net) at the measure level. "]
["Business Program"]
[9,"Efficiency: Equipment Replacement","Results are directly attributed to LDC based on LDC identified at the facility level in the saveONenergy CRM; Projects in the Application Status: \"Post-Stage Submission\" are included (excluding \"Payment denied by LDC\"); Please see \"Reference Tables\" tab for Building type to Sector mapping","Savings are considered to begin in the year of the actual project completion date on the iCON CRM system. ","Peak demand and energy savings are determined by the total savings for a given project as reported in the iCON CRM system (reported). A realization rate is applied to the reported savings  to ensure that these savings align with EM&V protocols and reflect the savings that were actually realized (i.e. how many light bulbs were actually installed vs. what was reported) (gross). Net savings takes into account net-to-gross factors such as free-ridership and spillover (net). Both realization rate and net-to-gross ratios can differ for energy and demand savings and depend on the mix of projects within an LDC territory (i.e. lighting or non-lighting project, engineered/custom/prescriptive track). "]
[null,null,"Additional Note: project counts were derived by filtering out \"Application Status\" = \"Post-Project Submission - Payment denied by LDC\" and only including projects with an \"Actual Project Completion Date\" in 2011 and pulling both the \"Application Name\" field followed by the \"Building Address 1\" field from the Post Stage Retrofit Report and finally performing a count of the Building Addresses."]
[10,"Direct Installed Lighting","Results are directly attributed to LDC based on the LDC specified on the work order","Savings are considered to begin in the year of the actual project completion date.","Peak demand and energy savings are determined using the verified measure level per unit assumptions multiplied by the uptake of each measure accounting for the realization rate for both peak demand and energy to reflect the savings that were actually realized (i.e. how many light bulbs were actually installed vs. what was reported) (gross). Net savings take into account net-to-gross factors such as free-ridership and spillover for both peak demand and energy savings at the program level (net). "]
[11,"Existing Building Commissioning Incentive","Results are directly attributed to LDC based on LDC identified in the application; Initiative was not evaluated, no completed projects in 2011.","Savings are considered to begin in the year of the actual project completion date.","Peak demand and energy savings are determined by the total savings for a given project as reported (reported). A realization rate is applied to the reported savings  to ensure that these savings align with EM&V protocols and reflect the savings that were actually realized (i.e. how many light bulbs were actually installed vs. what was reported) (gross). Net savings takes into account net-to-gross factors such as free-ridership and spillover (net). "]
[12,"New Construction and Major Renovation Incentive","Results are directly attributed to LDC based on LDC identified in the application; Initiative was not evaluated, reported results are presented with reported assumptions (as per evaluated results in 2010 and consultation with OPA-LDC Work Groups)","Savings are considered to begin in the year of the actual project completion date."]
[13,"Energy Audit","No resource savings results determined in 2011; Projects are directly attributed to LDC based on LDC identified in the application","Savings are considered to begin in the year of the audit date. ","Peak demand and energy savings are determined by the total savings resulting from an audit as reported (reported). A realization rate is applied to the reported savings  to ensure that these savings align with EM&V protocols and reflect the savings that were actually realized (i.e. how many light bulbs were actually installed vs. what was reported) (gross). Net savings takes into account net-to-gross factors such as free-ridership and spillover (net). "]
[14,"Commercial Demand Response (part of the Residential program schedule)","Results are directly attributed to LDC based on data provided to OPA through project completion reports and continuing participant lists","Savings are considered to begin in the year the device was installed and/or when a customer signed a peaksaver PLUS™ participant agreement.","Peak demand savings are based on an ex ante estimate assuming a 1 in 10 weather year and represents the \"insurance value\" of the initiative. Energy savings are based on an ex post estimate which reflects the savings that occurred as a result of activations in the year. Savings are assumed to persist for only 1 year, reflecting that savings will only occur if the resource is activated. "]
[15,"Demand Response 3 (part of the Industrial program schedule)","Results are attributed to LDCs based on the total contracted megawatts at the contributor level as of December 31st, applying the provincial ex ante to contracted ratio (ex ante estimate/contracted megawatts); Ex post energy savings are attributed to the LDC based on their proportion of the total contracted megawatts at the contributor level.","Savings are considered to begin in the year in which the contributor signed up to participate in demand response.","Peak demand savings are ex ante estimates based on the load reduction capability that can be expected for the purposes of planning. The ex ante estimates factor in both scheduled non-performances (i.e. maintenance) and historical performance. Energy savings are based on an ex post estimate which reflects the savings that actually occurred as a results of activations in the year.  Savings are assumed to persist for 1 year, reflecting that savings will not occur if the resource is not activated and additional costs are incurred to activate the resource. "]
["Industrial Program"]
[16,"Process & System Upgrades","Results are directly attributed to LDC based on LDC identified in application in the saveONenergy CRM system; Initiative was not evaluated, no completed projects in 2011.","Savings are considered to begin in the year in which the incentive project was completed. ","Peak demand and energy savings are determined by the total savings from a given project as reported (reported). A realization rate is applied to the reported savings  to ensure that these savings align with EM&V protocols and reflect the savings that were actually realized (i.e. how many light bulbs were actually installed vs. what was reported) (gross). Net savings takes into account net-to-gross factors such as free-ridership and spillover (net). "]
[17,"Monitoring & Targeting","Results are directly attributed to LDC based on LDC identified in the application; Initiative was not evaluated, no completed projects in 2011.","Savings are considered to begin in the year in which the incentive project was completed. ","Peak demand and energy savings are determined by the total savings from a given project as reported (reported). A realization rate is applied to the reported savings  to ensure that these savings align with EM&V protocols and reflect the savings that were actually realized (i.e. how many light bulbs were actually installed vs. what was reported) (gross). Net savings takes into account net-to-gross factors such as free-ridership and spillover (net). "]
[18,"Energy Manager","Results are directly attributed to LDC based on LDC identified in the application; Initiative was not evaluated, no completed projects in 2011.","Savings are considered to begin in the year in which the project was completed by the energy manager. If no date is specified the savings will begin the year of the Quarterly Report submitted by the energy manager.","Peak demand and energy savings are determined by the total savings from a given project as reported (reported). A realization rate is applied to the reported savings  to ensure that these savings align with EM&V protocols and reflect the savings that were actually realized (i.e. how many light bulbs were actually installed vs. what was reported) (gross). Net savings takes into account net-to-gross factors such as free-ridership and spillover (net). "]
[19,"Efficiency: Equipment Replacement Incentive (part of the C&I program schedule)","Results are directly attributed to LDC based on LDC identified at the facility level in the saveONenergy CRM; Projects in the Application Status: \"Post-Stage Submission\" are included (excluding \"Payment denied by LDC\"); Please see \"Reference Tables\" tab for Building type to Sector mapping","Savings are considered to begin in the year of the actual project completion date on the iCON CRM system.","Peak demand and energy savings are determined by the total savings for a given project as reported in the iCON CRM system (reported). A realization rate is applied to the reported savings  to ensure that these savings align with EM&V protocols and reflect the savings that were actually realized (i.e. how many light bulbs were actually installed vs. what was reported) (gross). Net savings takes into account net-to-gross factors such as free-ridership and spillover (net). Both realization rate and net-to-gross ratios can differ for energy and demand savings and depend on the mix of projects within an LDC territory (i.e. lighting or non-lighting project, engineered/custom/prescriptive track). "]
[20,"Demand Response 3","Results are attributed to LDCs based on the total contracted megawatts at the contributor level as of December 31st, applying the provincial ex ante to contracted ratio (ex ante estimate/contracted megawatts); Ex post energy savings are attributed to the LDC based on their proportion of the total contracted megawatts at the contributor level.","Savings are considered to begin in the year in which the contributor signed up to participate in demand response.","Peak demand savings are ex ante estimates based on the load reduction capability that can be expected for the purposes of planning. The ex ante estimates factor in both scheduled non-performances (i.e. maintenance) and historical performance. Energy savings are based on an ex post estimate which reflects the savings that actually occurred as a results of activations in the year.  Savings are assumed to persist for 1 year, reflecting that savings will not occur if the resource is not activated and additional costs are incurred to activate the resource. "]
["Home Assistance Program"]
[21,"Home Assistance Program","Results are directly attributed to LDC based on LDC identified in the application; Initiative was not evaluated in 2011, reported results are presented with forecast assumptions as per the business case.","Savings are considered to begin in the year in which the measures were installed.","Peak demand and energy savings are determined using the measure level per unit assumption multiplied by the uptake of each measure (gross) taking into account net-to-gross factors such as free-ridership and spillover (net) at the measure level. "]
["Pre-2011 Programs completed in 2011"]
[22,"Electricity Retrofit Incentive Program","Results are directly attributed to LDC based on LDC identified in the application; Initiative was not evaluated in 2011, assumptions as per 2010 evaluation","Savings are considered to begin in the year in which a project was completed. ","Peak demand and energy savings are determined by the total savings from a given project as reported (reported). A realization rate is applied to the reported savings  to ensure that these savings align with EM&V protocols and reflect the savings that were actually realized (i.e. how many light bulbs were actually installed vs. what was reported) (gross). Net savings takes into account net-to-gross factors such as free-ridership and spillover (net). If energy savings are not available, an estimate is made based on the kWh to kW ratio in the provincial results from the 2010 evaluated results (http://www.powerauthority.on.ca/evaluation-measurement-and-verification/evaluation-reports). "]
[23,"High Performance New Construction","Results are directly attributed to LDC based on customer data provided to the OPA from Enbridge; Initiative was not evaluated in 2011, assumptions as per 2010 evaluation","Savings are considered to begin in the year in which a project was completed. "]
[24,"Toronto Comprehensive","Program run exclusively in Toronto Hydro-Electric System Limited service territory; Initiative was not evaluated in 2011, assumptions as per 2010 evaluation"]
[25,"Multifamily Energy Efficiency Rebates","Results are directly attributed to LDC based on LDC identified in the application; Initiative was not evaluated in 2011, assumptions as per 2010 evaluation","Savings are considered to begin in the year in which a project was completed. ","Peak demand and energy savings are determined by the total savings from a given project as reported (reported). A realization rate is applied to the reported savings  to ensure that these savings align with EM&V protocols and reflect the savings that were actually realized (i.e. how many light bulbs were actually installed vs. what was reported) (gross). Net savings takes into account net-to-gross factors such as free-ridership and spillover (net). If energy savings are not available, an estimate is made based on the kWh to kW ratio in the provincial results from the 2010 evaluated results (http://www.powerauthority.on.ca/evaluation-measurement-and-verification/evaluation-reports). "]
[26,"Data Centre Incentive Program","Program run exclusively in PowerStream Inc. service territory; Initiative was not evaluated in 2011, assumptions as per 2009 evaluation"]
[27,"EnWin Green Suites","Program run exclusively in ENWIN Utilities Ltd. service territory; Initiative was not evaluated in 2011, assumptions as per 2010 evaluation"]

{"sheet":"Reference Tables","index":11,"n_rows":180,"n_cols":3,"rows_kept":180,"cut":false,"hidden":false,"merged":[[1,1,1,2],[99,1,99,2],[100,1,101,2]]}
[]
[null,"ERII Sector (C&I vs. Industrial Mapping)"]
[]
[null,"Building Type","Sector"]
[null,"Agribusiness - Cattle Farm","C&I"]
[null,"Agribusiness - Dairy Farm","C&I"]
[null,"Agribusiness - Greenhouse","C&I"]
[null,"Agribusiness - Other","C&I"]
[null,"Agribusiness - Other,Mixed-Use - Office/Retail","C&I"]
[null,"Agribusiness - Other,Office,Retail,Warehouse","C&I"]
[null,"Agribusiness - Other,Office,Warehouse","C&I"]
[null,"Agribusiness - Poultry","C&I"]
[null,"Agribusiness - Poultry,Hospitality - Motel","C&I"]
[null,"Agribusiness - Swine","C&I"]
[null,"Convenience Store","C&I"]
[null,"Education - College / Trade School","C&I"]
[null,"Education - College / Trade School,Multi-Residential - Condominium","C&I"]
[null,"Education - College / Trade School,Multi-Residential - Rental Apartment","C&I"]
[null,"Education - College / Trade School,Retail","C&I"]
[null,"Education - Primary School","C&I"]
[null,"Education - Primary School,Education - Secondary School","C&I"]
[null,"Education - Primary School,Multi-Residential - Rental Apartment","C&I"]
[null,"Education - Primary School,Not-for-Profit","C&I"]
[null,"Education - Secondary School","C&I"]
[null,"Education - University","C&I"]
[null,"Education - University,Office","C&I"]
[null,"Hospital/Healthcare - Clinic","C&I"]
[null,"Hospital/Healthcare - Clinic,Hospital/Healthcare - Long-term Care,Hospital/Healthcare - Medical Building","C&I"]
[null,"Hospital/Healthcare - Clinic,Industrial","C&I"]
[null,"Hospital/Healthcare - Clinic,Retail","C&I"]
[null,"Hospital/Healthcare - Long-term Care","C&I"]
[null,"Hospital/Healthcare - Long-term Care,Hospital/Healthcare - Medical Building","C&I"]
[null,"Hospital/Healthcare - Medical Building","C&I"]
[null,"Hospital/Healthcare - Medical Building,Mixed-Use - Office/Retail","C&I"]
[null,"Hospital/Healthcare - Medical Building,Mixed-Use - Office/Retail,Office","C&I"]
[null,"Hospitality - Hotel","C&I"]
[null,"Hospitality - Hotel,Restaurant - Dining","C&I"]
[null,"Hospitality - Motel","C&I"]
[null,"Industrial","Industrial"]
[null,"Mixed-Use - Office/Retail","C&I"]
[null,"Mixed-Use - Office/Retail,Industrial","Industrial"]
[null,"Mixed-Use - Office/Retail,Mixed-Use - Other","C&I"]
[null,"Mixed-Use - Office/Retail,Mixed-Use - Other,Not-for-Profit,Warehouse","C&I"]
[null,"Mixed-Use - Office/Retail,Mixed-Use - Residential/Retail","C&I"]
[null,"Mixed-Use - Office/Retail,Office,Restaurant - Dining,Restaurant - Quick Serve,Retail,Warehouse","C&I"]
[null,"Mixed-Use - Office/Retail,Office,Warehouse","C&I"]
[null,"Mixed-Use - Office/Retail,Retail","C&I"]
[null,"Mixed-Use - Office/Retail,Warehouse","C&I"]
[null,"Mixed-Use - Office/Retail,Warehouse,Industrial","Industrial"]
[null,"Mixed-Use - Other","C&I"]
[null,"Mixed-Use - Other,Industrial","Industrial"]
[null,"Mixed-Use - Other,Not-for-Profit,Office","C&I"]
[null,"Mixed-Use - Other,Office","C&I"]
[null,"Mixed-Use - Other,Other: Please specify","C&I"]
[null,"Mixed-Use - Other,Retail,Warehouse","C&I"]
[null,"Mixed-Use - Other,Warehouse","C&I"]
[null,"Mixed-Use - Residential/Retail","C&I"]
[null,"Mixed-Use - Residential/Retail,Multi-Residential - Condominium","C&I"]
[null,"Mixed-Use - Residential/Retail,Multi-Residential - Rental Apartment","C&I"]
[null,"Mixed-Use - Residential/Retail,Retail","C&I"]
[null,"Multi-Residential - Condominium","C&I"]
[null,"Multi-Residential - Condominium,Multi-Residential - Rental Apartment","C&I"]
[null,"Multi-Residential - Condominium,Other: Please specify","C&I"]
[null,"Multi-Residential - Rental Apartment","C&I"]
[null,"Multi-Residential - Rental Apartment,Multi-Residential - Social Housing Provider,Not-for-Profit","C&I"]
[null,"Multi-Residential - Rental Apartment,Not-for-Profit","C&I"]
[null,"Multi-Residential - Rental Apartment,Warehouse","C&I"]
[null,"Multi-Residential - Social Housing Provider","C&I"]
[null,"Multi-Residential - Social Housing Provider,Industrial","C&I"]
[null,"Multi-Residential - Social Housing Provider,Not-for-Profit","C&I"]
[null,"Not-for-Profit","C&I"]
[null,"Not-for-Profit,Office","C&I"]
[null,"Not-for-Profit,Other: Please specify","C&I"]
[null,"Not-for-Profit,Warehouse","C&I"]
[null,"Office","C&I"]
[null,"Office,Industrial","Industrial"]
[null,"Office,Other: Please specify","C&I"]
[null,"Office,Other: Please specify,Warehouse","C&I"]
[null,"Office,Restaurant - Dining","C&I"]
[null,"Office,Restaurant - Dining,Industrial","Industrial"]
[null,"Office,Retail","C&I"]
[null,"Office,Retail,Industrial","C&I"]
[null,"Office,Retail,Warehouse","C&I"]
[null,"Office,Warehouse","C&I"]
[null,"Office,Warehouse,Industrial","Industrial"]
[null,"Other: Please specify","C&I"]
[null,"Other: Please specify,Industrial","Industrial"]
[null,"Other: Please specify,Retail","C&I"]
[null,"Other: Please specify,Warehouse","C&I"]
[null,"Restaurant - Dining","C&I"]
[null,"Restaurant - Dining,Retail","C&I"]
[null,"Restaurant - Quick Serve","C&I"]
[null,"Restaurant - Quick Serve,Retail","C&I"]
[null,"Retail","C&I"]
[null,"Retail,Industrial","Industrial"]
[null,"Retail,Warehouse","C&I"]
[null,"Warehouse","C&I"]
[null,"Warehouse,Industrial","Industrial"]
[]
[null,"Consumer Program Allocation Methodology"]
[null,"Results can be allocated based on average of 2008 & 2009 residential throughput for each LDC (below) when additional information is not available. Source: OEB Yearbook Data 2008 & 2009"]
[]
[null,"Local Distribution Company","Allocation"]
[null,"Algoma Power Inc.",2.2072403063999012E-3]
[null,"Atikokan Hydro Inc.",2.6544360425626284E-4]
[null,"Attawapiskat Power Corporation",2.5451621761569021E-4]
[null,"Bluewater Power Distribution Corporation",6.4604327428134318E-3]
[null,"Brant County Power Inc.",1.9785186698313209E-3]
[null,"Brantford Power Inc.",7.2552606216053266E-3]
[null,"Burlington Hydro Inc.",1.375669674357778E-2]
[null,"Cambridge and North Dumfries Hydro Inc.",9.5775175862093456E-3]
[null,"Canadian Niagara Power Inc.",5.1100366224049159E-3]
[null,"Centre Wellington Hydro Ltd.",1.1292196018523875E-3]
[null,"Chapleau Public Utilities Corporation",3.7856664428812393E-4]
[null,"COLLUS Power Corporation",2.8577564909433306E-3]
[null,"Cooperative Hydro Embrun Inc.",4.9421339762300653E-4]
[null,"E.L.K. Energy Inc.",2.2695398624495533E-3]
[null,"Enersource Hydro Mississauga Inc.",3.9264862886934669E-2]
[null,"ENTEGRUS",5.7665818808011384E-3]
[null,"ENWIN Utilities Ltd.",1.5542262594422512E-2]
[null,"Erie Thames Powerlines Corporation",3.5350607245395261E-3]
[null,"Espanola Regional Hydro Distribution Corporation",8.2131047294371296E-4]
[null,"Essex Powerlines Corporation",6.538897858341255E-3]
[null,"Festival Hydro Inc.",3.4980698626719486E-3]
[null,"Fort Albany Power Corporation",2.1248070021754714E-4]
[null,"Fort Frances Power Corporation",9.9471426564592329E-4]
[null,"Greater Sudbury Hydro Inc.",1.0275840351909283E-2]
[null,"Grimsby Power Inc.",2.2791944515585844E-3]
[null,"Guelph Hydro Electric Systems Inc.",8.9832627056114309E-3]
[null,"Haldimand County Hydro Inc.",4.2440866574297662E-3]
[null,"Halton Hills Hydro Inc.",5.4747498869762634E-3]
[null,"Hearst Power Distribution Company Limited",6.6735090495061372E-4]
[null,"Horizon Utilities Corporation",4.0428501039927484E-2]
[null,"Hydro 2000 Inc.",3.8959893236253912E-4]
[null,"Hydro Hawkesbury Inc.",1.3938446616183968E-3]
[null,"Hydro One Brampton Networks Inc.",2.818021690166201E-2]
[null,"Hydro One Networks Inc.",0.299787926772626]
[null,"Hydro Ottawa Limited",5.595383703157078E-2]
[null,"Innisfil Hydro Distribution Systems Limited",3.9509347823804067E-3]
[null,"Kashechewan Power Corporation",2.8562286297694611E-4]
[null,"Kenora Hydro Electric Corporation Ltd.",9.8919097547938719E-4]
[null,"Kingston Hydro Corporation",5.0137634313544678E-3]
[null,"Kitchener-Wilmot Hydro Inc.",1.6310110633284559E-2]
[null,"Lakefront Utilities Inc.",1.9067936126029442E-3]
[null,"Lakeland Power Distribution Ltd.",2.0465623782524598E-3]
[null,"London Hydro Inc.",2.7308269355732401E-2]
[null,"Middlesex Power Distribution Corporation",1.4596361097924133E-3]
[null,"Midland Power Utility Corporation",1.1955012769947885E-3]
[null,"Milton Hydro Distribution Inc.",5.695487056009068E-3]
[null,"Newmarket - Tay Power Distribution Ltd.",6.6065259639828565E-3]
[null,"Niagara Peninsula Energy Inc.",9.9445435748961499E-3]
[null,"Niagara-on-the-Lake Hydro Inc.",1.5857796221421981E-3]
[null,"Norfolk Power Distribution Inc.",3.495199040959563E-3]
[null,"North Bay Hydro Distribution Limited",5.3327744085732041E-3]
[null,"Northern Ontario Wires Inc.",1.0614081482514623E-3]
[null,"Oakville Hydro Electricity Distribution Inc.",1.4631531912425149E-2]
[null,"Orangeville Hydro Limited",2.1201395249678973E-3]
[null,"Orillia Power Distribution Corporation",2.7223368034325584E-3]
[null,"Oshawa PUC Networks Inc.",1.2283015412762929E-2]
[null,"Ottawa River Power Corporation",1.9742178906643881E-3]
[null,"Parry Sound Power Corporation",8.5920707094179764E-4]
[null,"Peterborough Distribution Incorporated",7.132338247334038E-3]
[null,"PowerStream Inc.",6.638337811854407E-2]
[null,"PUC Distribution Inc.",8.6874787619667174E-3]
[null,"Renfrew Hydro Inc.",7.7516874594541266E-4]
[null,"Rideau St. Lawrence Distribution Inc.",1.1201282611704468E-3]
[null,"Sioux Lookout Hydro Inc.",8.4050467674374888E-4]
[null,"St. Thomas Energy Inc.",2.9393367907312421E-3]
[null,"Thunder Bay Hydro Electricity Distribution Inc.",8.7381028658200868E-3]
[null,"Tillsonburg Hydro Inc.",1.2797399586120608E-3]
[null,"Toronto Hydro-Electric System Limited",0.12797924684951881]
[null,"Veridian Connections Inc.",2.3525019215773622E-2]
[null,"Wasaga Distribution Inc.",1.799242181556322E-3]
[null,"Waterloo North Hydro Inc.",1.0018810469759051E-2]
[null,"Welland Hydro-Electric System Corp.",3.8788956574489233E-3]
[null,"Wellington North Power Inc.",6.324479623273238E-4]
[null,"West Coast Huron Energy Inc.",6.532857746246321E-4]
[null,"Westario Power Inc.",5.4114625918074482E-3]
[null,"Whitby Hydro Electric Corporation",8.6508718812876063E-3]
[null,"Woodstock Hydro Services Inc.",2.5483784835767954E-3]

{"sheet":"Glossary","index":12,"n_rows":16,"n_cols":1,"rows_kept":16,"cut":false,"hidden":false,"merged":[[5,0,5,7],[14,0,14,7],[12,0,12,7],[8,0,8,7],[0,0,0,7],[2,0,2,7],[3,0,3,7],[4,0,4,7],[13,0,13,7],[11,0,11,7],[15,0,15,7],[6,0,6,7],[7,0,7,7],[9,0,9,7],[10,0,10,7]]}
[" Reporting Glossary"]
[]
["Annual: the peak demand or energy savings that occur in a given year (includes resource savings from new program activity in a given year and resource savings persisting from previous years)."]
["Cumulative Energy Savings: represents the sum of the annual energy savings that accrue over a defined period (in the context of this report the defined period is 2011 - 2014). This concept does not apply to peak demand savings."]
["End-User Level: resource savings in this report are measured at the customer level as opposed to the generator level (the difference being line losses). "]
["Free-ridership: the percentage of participants who would have implemented the program measure or practice in the absence of the program.  "]
["Incremental: the new resource savings attributable to activity procured in a particular reporting period based on when the savings are considered to 'start' (please see table 5)."]
["Initiative: a Conservation & Demand Management offering focusing on a particular opportunity or customer end-use (i.e. Retrofit, Fridge & Freezer Pickup)."]
["Net-to-Gross Ratio: The ratio of net savings to gross savings, which takes into account factors such as free‐ridership and spillover"]
["Net Energy Savings (MWh): energy savings attributable to conservation and demand management activities net of free-riders, etc."]
["Net Peak Demand Savings (MW): peak demand savings attributable to conservation and demand management activities net of free-riders, etc."]
["Program: a group of initiatives that target a particular market sector (i.e. Consumer, Industrial). "]
["Realization Rate: A comparison of observed or measured (evaluated) information to original reported savings which is used to adjust the gross savings estimates. "]
["Settlement Account: the grouping of demand response facilities (contributors) into one contractual agreement"]
["Spillover: Reductions in energy consumption and/or demand caused by the presence of the energy efficiency program, beyond the program-related gross savings of the participants. There can be participant and/or non-participant spillover."]
["Unit: for a specific initiative the relevant type of activity acquired in the market place (i.e. appliances picked up, projects completed, coupons redeemed)."]